bitfinex-derivatives/quotes_ETHF0:USTF0_20250101
["timestamp","ask_amount","ask_price","bid_price","bid_amount"]
[1735759300903,3.2078,3347.5,3347.4,0.29941]
[1735759301114,0.4723,3347.7,3347.1,0.74859]
[1735759301414,0.4723,3347.7,3347.6,0.29939]
[1735759302516,3.06002742,3348.2,3347.3,3.2078]
[1735759302817,0.4633,3348.1,3348.0,0.29935]
[1735759303216,0.4633,3348.1,3347.6,1.424]
[1735759303410,0.76265,3348.1,3347.6,1.424]
[1735759303611,0.76265,3348.1,3348.0,0.29935]
[1735759305015,0.4633,3348.1,3348.0,0.29935]
[1735759308417,3.50712,3348.4,3348.2,0.29933]
[1735759308615,3.674,3348.4,3347.6,2.17246]
[1735759308820,3.674,3348.4,3347.8,0.74843]
[1735759309024,3.97332,3348.4,3348.2,0.29933]
[1735759309229,3.97332,3348.4,3347.8,0.74843]
[1735759309520,3.674,3348.4,3348.3,0.29933]
[1735759309719,3.2078,3348.4,3348.3,0.29933]
[1735759310030,3.2078,3348.8,3348.7,0.29929]
[1735759311721,0.29928,3348.9,3348.7,0.29929]
[1735759311924,3.2078,3348.8,3348.7,0.29929]
[1735759312218,3.695,3348.8,3348.4,1.4793]
[1735759312424,3.99428,3348.8,3348.6,0.29929]
[1735759313527,3.695,3348.8,3348.7,0.29929]
[1735759314019,0.29929,3348.7,3348.4,1.4793]
[1735759314224,3.695,3348.8,3348.4,1.4793]
[1735759314524,3.99428,3348.8,3348.7,0.29929]
[1735759315825,3.695,3348.8,3348.7,0.29929]
[1735759317122,3.695,3348.8,3348.4,1.4793]
[1735759317123,3.695,3348.8,3348.5,0.29931]
[1735759317328,3.99428,3348.8,3348.6,0.29929]
[1735759317825,0.78648,3348.8,3348.6,0.29929]
[1735759318028,0.29929,3348.7,3348.6,0.29929]
[1735759319925,3.99429,3348.8,3348.6,0.29929]
[1735759320326,3.99429,3348.8,3348.7,0.29929]
[1735759321626,3.695,3348.8,3348.7,0.29929]
[1735759328335,0.4872,3348.8,3348.7,0.29929]
[1735759328633,3.695,3348.8,3348.7,0.29929]
[1735759331435,3.99428,3348.8,3348.7,0.29929]
[1735759333133,3.695,3348.8,3348.4,1.4793]
[1735759333334,0.29929,3348.7,3348.6,0.2993]
[1735759333534,3.99429,3348.8,3348.7,0.29929]
[1735759334438,0.2993,3348.7,3348.6,0.2993]
[1735759335840,3.99429,3348.8,3348.7,0.29929]
[1735759336830,0.2993,3348.7,3348.6,0.29929]
[1735759337540,3.695,3348.8,3348.4,1.4793]
[1735759337739,3.99429,3348.8,3348.7,0.29929]
[1735759339339,3.695,3348.8,3348.7,0.29929]
[1735759341043,3.2078,3348.8,3348.7,0.29929]
[1735759341339,3.2078,3349.4,3349.3,0.29924]
[1735759341541,3.50703,3349.4,3349.3,0.29924]
[1735759341735,4.01123,3349.4,3349.3,0.29924]
[1735759342334,4.01123,3349.4,3349.2,0.29924]
[1735759342540,0.29924,3349.3,3349.2,0.29924]
[1735759342734,4.01123,3349.4,3349.2,0.29924]
[1735759343832,3.712,3349.4,3349.2,0.29924]
[1735759344033,2.26568742,3349.3,3348.6,3.2078]
[1735759344244,0.29926,3349.1,3348.7,0.968]
[1735759344444,0.29926,3349.1,3348.8,0.46796419]
[1735759344744,0.29927,3349.0,3348.9,0.29927]
[1735759348245,0.29925,3349.1,3349.0,0.29926]
[1735759348444,0.29925,3349.1,3348.7,0.4702]
[1735759348633,0.9774,3349.3,3348.7,0.4702]
[1735759348835,0.29927,3349.0,3348.8,0.29928]
[1735759349241,0.4566,3348.9,3348.8,0.29928]
[1735759349440,0.4566,3348.9,3348.7,0.4702]
[1735759349441,0.29928,3348.8,3348.7,0.4702]
[1735759349645,0.2993,3348.7,3348.5,0.2993]
[1735759349844,0.2993,3348.7,3348.4,0.9201]
[1735759350043,0.2993,3348.7,3348.6,0.2993]
[1735759350343,0.29929,3348.8,3348.7,0.29929]
[1735759350545,0.4566,3348.9,3348.7,0.29929]
[1735759350847,0.4566,3348.9,3348.4,0.9201]
[1735759351046,0.29928,3348.8,3348.7,0.29929]
[1735759351344,0.29928,3348.8,3348.6,0.29929]
[1735759351547,0.29928,3348.8,3348.7,0.29929]
[1735759352546,0.29928,3348.8,3348.2,0.29933]
[1735759352547,0.74821,3348.8,3348.2,0.29933]
[1735759352847,3.2078,3348.6,3347.9,1.4226]
[1735759353048,0.29934,3348.2,3348.0,0.76742428]
[1735759353540,0.4996,3348.1,3348.0,0.29935]
[1735759353848,0.79895,3348.1,3347.9,0.76805]
[1735759354047,1.27325,3348.1,3348.0,0.29935]
[1735759354343,0.9739,3348.1,3348.0,0.29935]
[1735759354649,1.27324,3348.1,3348.0,0.29935]
[1735759357250,0.9739,3348.1,3348.0,0.29935]
[1735759357544,0.79894,3348.1,3348.0,0.29935]
[1735759357741,0.4996,3348.1,3348.0,0.29935]
[1735759358747,0.79894,3348.1,3348.0,0.29935]
[1735759360947,0.29935,3348.0,3347.9,0.76806]
[1735759361147,0.4996,3348.1,3347.8,0.29936]
[1735759361349,0.29936,3347.9,3347.8,0.29936]
[1735759361654,0.29937,3347.8,3347.7,3.50718]
[1735759362951,0.29937,3347.8,3347.7,0.29938]
[1735759363349,0.79417,3347.9,3347.8,0.29937]
[1735759363752,0.78226,3348.0,3347.5,3.6651]
[1735759363947,0.4829,3348.0,3347.9,0.29936]
[1735759364148,0.78225,3348.0,3347.9,0.29936]
[1735759368158,0.29937,3347.9,3347.8,0.29937]
[1735759369557,0.4829,3348.0,3347.5,3.6651]
[1735759369759,0.29937,3347.9,3347.8,0.29936]
[1735759370246,0.4829,3348.0,3347.5,3.6651]
[1735759370553,0.78226,3348.0,3347.9,0.29936]
[1735759370746,0.4829,3348.0,3347.5,3.6651]
[1735759370953,0.29936,3347.9,3347.8,0.29937]
[1735759372157,0.4829,3348.0,3347.5,3.6651]
[1735759372362,0.29936,3348.0,3347.9,0.29936]
[1735759373065,0.4996,3348.1,3347.5,3.6651]
[1735759373363,0.4996,3348.1,3348.0,0.29935]
[1735759374860,0.79894,3348.1,3348.0,0.29935]
[1735759375359,0.4996,3348.1,3348.0,0.29935]
[1735759375563,3.2078,3348.2,3348.1,0.29934]
[1735759376867,3.2078,3348.2,3347.5,0.4573]
[1735759377067,3.2078,3347.6,3347.5,0.4573]
[1735759377261,3.2078,3347.6,3347.5,0.75669]
[1735759381367,3.2078,3347.6,3347.5,0.4573]
[1735759382669,3.2078,3347.6,3347.5,0.7567]
[1735759382868,3.2078,3347.6,3347.5,0.4573]
[1735759383265,0.29942,3347.3,3347.0,0.29944]
[1735759383473,0.29942,3347.2,3347.1,0.4839]
[1735759383672,0.4968,3347.2,3347.1,0.4839]
[1735759384167,0.79622,3347.2,3347.1,0.4839]
[1735759386074,0.29945,3347.0,3346.8,3.50726]
[1735759386366,0.29945,3347.0,3346.9,0.4802]
[1735759386775,0.29945,3346.9,3346.5,0.29948]
[1735759386975,0.29947,3346.8,3346.5,0.29948]
[1735759387374,0.4823,3346.7,3346.6,0.29948]
[1735759387673,0.78177,3346.7,3346.5,0.29948]
[1735759387872,0.4823,3346.7,3346.6,0.29948]
[1735759388375,0.4823,3346.7,3346.5,0.29949]
[1735759388576,0.4823,3346.7,3346.6,0.29948]
[1735759388869,0.78177,3346.7,3346.6,0.29948]
[1735759389075,0.4823,3346.7,3346.4,1.4379]
[1735759389574,0.4823,3346.7,3346.6,0.29948]
[1735759390271,0.78177,3346.7,3346.6,0.29948]
[1735759390670,3.2078,3347.0,3346.4,1.4379]
[1735759390879,0.29946,3346.9,3346.8,0.29946]
[1735759391174,0.29945,3346.9,3346.8,0.29946]
[1735759391575,0.29945,3346.9,3346.7,0.29946]
[1735759392175,3.6774,3347.0,3346.7,0.29946]
[1735759392378,0.29947,3346.8,3346.6,0.29947]
[1735759392775,0.29947,3346.8,3346.7,0.29947]
[1735759393171,0.29947,3346.8,3346.6,0.29947]
[1735759393983,0.29949,3346.5,3346.4,0.9575]
[1735759395079,0.9646,3346.7,3346.3,3.2078]
[1735759395080,0.2995,3346.4,3346.3,3.2078]
[1735759395282,0.7575,3346.4,3346.3,3.2078]
[1735759395579,0.458,3346.4,3346.0,40.8]
[1735759395771,0.458,3346.4,3344.7,2.985]
[1735759395772,5.47348742,3346.1,3345.5,3.2078]
[1735759395975,0.462,3346.0,3345.7,0.29955]
[1735759396177,0.29956,3345.7,3345.6,0.29956]
[1735759396377,0.4986,3345.9,3345.5,3.7099]
[1735759396683,3.2078,3346.1,3346.0,0.29953]
[1735759402084,3.50732,3346.1,3346.0,0.29953]
[1735759403881,3.2078,3346.1,3346.0,0.29953]
[1735759404185,3.50732,3346.1,3346.0,0.29953]
[1735759404683,3.2078,3346.1,3345.6,0.4737]
[1735759404876,0.29953,3346.0,3345.9,0.29954]
[1735759405082,0.29955,3345.9,3345.8,0.29955]
[1735759405281,0.80235,3345.9,3345.8,0.29955]
[1735759406987,0.5028,3345.9,3345.6,0.4737]
[1735759407178,0.29956,3345.8,3345.7,0.29956]
[1735759408287,0.29957,3345.7,3345.6,0.29957]
[1735759408885,0.80235,3345.9,3345.8,0.29955]
[1735759409082,0.29956,3345.8,3345.7,0.29955]
[1735759410189,0.5028,3345.9,3345.5,3.7099]
[1735759410390,0.80235,3345.9,3345.8,0.29955]
[1735759412793,0.5028,3345.9,3345.8,0.29955]
[1735759420498,0.80234,3345.9,3345.8,0.29955]
[1735759420991,0.5028,3345.9,3345.5,3.2078]
[1735759421299,0.29956,3345.8,3345.7,0.29955]
[1735759422193,0.5028,3345.9,3345.5,3.2078]
[1735759422396,0.5026,3345.7,3345.6,0.29956]
[1735759422898,1.007,3345.7,3345.6,0.29956]
[1735759423294,0.29959,3345.4,3345.3,0.29959]
[1735759423495,0.29958,3345.5,3345.4,0.29958]
[1735759424597,4.51437,3345.7,3345.6,0.29957]
[1735759424797,0.29958,3345.5,3345.4,0.29958]
[1735759425796,4.2148,3345.7,3345.1,3.2078]
[1735759425999,0.4863,3345.4,3345.1,3.2078]
[1735759426193,0.4863,3345.4,3345.2,0.46847696]
[1735759426499,0.4863,3345.4,3345.1,3.2078]
[1735759427093,0.4863,3345.4,3345.3,0.29959]
[1735759428297,0.2996,3345.3,3345.2,0.2996]
[1735759428508,0.4863,3345.4,3345.1,3.2078]
[1735759428803,0.2996,3345.2,3345.1,3.50741]
[1735759429590,0.2996,3345.2,3345.1,0.29961]
[1735759430001,0.7893,3345.2,3345.1,0.29961]
[1735759430802,0.4897,3345.2,3345.1,0.29961]
[1735759435399,0.7893,3345.2,3345.1,0.29961]
[1735759435801,0.4897,3345.2,3345.1,0.29961]
[1735759436104,0.7893,3345.2,3345.1,0.29961]
[1735759436302,1.86510835,3345.2,3345.1,0.29961]
[1735759437001,1.56550835,3345.2,3345.1,0.29961]
[1735759438206,3.2078,3345.3,3345.2,0.2996]
[1735759438407,0.4863,3345.4,3345.3,0.29959]
[1735759442299,4.78620835,3345.7,3345.0,1.82485835]
[1735759442505,3.2078,3345.7,3345.6,0.29957]
[1735759442909,1.37532835,3346.1,3346.0,0.29953]
[1735759443308,1.07580835,3346.1,3346.0,0.29953]
[1735759443518,0.471,3346.2,3346.1,0.29952]
[1735759443909,3.2078,3346.3,3346.2,0.29951]
[1735759444217,0.9309,3346.7,3346.5,0.29949]
[1735759444411,0.9309,3346.7,3346.6,0.29948]
[1735759445103,1.23037,3346.7,3346.5,0.29948]
[1735759446111,1.23037,3346.7,3346.2,0.9455]
[1735759446311,0.9309,3346.7,3346.6,0.29948]
[1735759446503,0.471,3346.7,3346.6,0.29948]
[1735759447007,3.2078,3347.2,3347.1,0.29943]
[1735759447306,0.29943,3347.1,3346.7,0.4899]
[1735759447512,0.76363,3347.1,3346.9,0.29945]
[1735759448008,0.4642,3347.1,3346.9,0.29945]
[1735759448209,0.4642,3347.1,3347.0,0.29944]
[1735759449410,0.4642,3347.1,3346.8,0.9664]
[1735759449911,0.4642,3347.1,3347.0,0.29944]
[1735759450810,3.50723,3347.2,3347.1,0.29943]
[1735759450811,3.2078,3347.2,3347.1,0.29943]
[1735759451000,0.29941,3347.4,3347.1,0.29943]
[1735759451203,0.4997,3347.5,3346.8,0.9664]
[1735759451400,0.29941,3347.4,3347.2,0.29942]
[1735759452003,0.4997,3347.5,3347.4,0.29941]
[1735759454611,3.50716,3348.0,3347.2,0.74857]
[1735759454824,0.75837,3347.9,3347.6,0.29938]
[1735759455116,0.75837,3347.9,3347.7,0.29938]
[1735759455410,0.29938,3347.8,3347.5,0.29939]
[1735759455716,0.459,3347.9,3347.2,0.474]
[1735759455916,0.29939,3347.6,3347.3,0.29941]
[1735759458012,0.29939,3347.6,3347.2,0.474]
[1735759458217,0.29939,3347.6,3347.3,0.29942]
[1735759458707,0.29939,3347.6,3347.4,0.7789]
[1735759459013,0.29937,3347.8,3347.6,0.29938]
[1735759459212,0.459,3347.9,3347.4,0.4795]
[1735759459413,0.29938,3347.7,3347.5,0.2994]
[1735759460317,0.29938,3347.8,3347.5,0.2994]
[1735759460613,0.29938,3347.7,3347.5,0.2994]
[1735759462308,0.29939,3347.6,3347.5,0.2994]
[1735759462815,0.29939,3347.6,3347.4,0.7789]
[1735759463717,0.29939,3347.7,3347.5,0.29939]
[1735759463913,0.29939,3347.6,3347.5,0.29939]
[1735759464306,0.459,3347.9,3347.0,0.9811]
[1735759464518,0.2994,3347.5,3347.3,0.29941]
[1735759465113,0.29939,3347.6,3347.4,0.2994]
[1735759465314,0.29939,3347.6,3347.0,0.9811]
[1735759465513,0.29939,3347.6,3347.4,0.2994]
[1735759468523,3.50719,3347.6,3347.4,0.2994]
[1735759469119,0.2994,3347.5,3347.4,0.2994]
[1735759469321,3.50719,3347.6,3347.4,0.2994]
[1735759469616,3.50719,3347.6,3347.0,0.9811]
[1735759469617,3.2078,3347.6,3347.0,0.9811]
[1735759469817,0.459,3347.9,3347.8,0.29937]
[1735759470022,3.2078,3348.0,3347.4,0.74852]
[1735759470215,1.0077,3348.3,3348.2,0.29934]
[1735759470415,5.47842855,3348.6,3347.8,3.2078]
[1735759470416,0.4859,3348.5,3347.8,3.2078]
[1735759470617,0.4859,3348.5,3347.9,1.73941]
[1735759470818,0.29932,3348.4,3348.2,0.29933]
[1735759471117,0.29933,3348.3,3348.1,0.29934]
[1735759473426,0.29933,3348.3,3348.2,0.29934]
[1735759473625,0.29932,3348.4,3348.2,0.29934]
[1735759473928,0.29933,3348.3,3348.2,0.29934]
[1735759474117,2.27062855,3348.3,3347.5,0.4565]
[1735759474315,3.2078,3348.0,3347.5,0.4892]
[1735759474525,0.29939,3347.6,3347.5,0.78859]
[1735759474822,1.4903,3347.9,3347.5,0.4892]
[1735759475126,0.29938,3347.7,3347.6,0.29939]
[1735759475514,1.4903,3347.9,3347.6,0.29939]
[1735759475714,1.4903,3347.9,3347.5,0.4892]
[1735759475917,1.78967,3347.9,3347.7,0.29938]
[1735759476922,0.5052,3347.9,3347.8,0.29937]
[1735759477320,3.2078,3348.0,3347.9,0.29936]
[1735759478926,0.77693,3348.3,3347.7,0.4838]
[1735759478927,3.98473,3348.3,3348.1,0.29934]
[1735759479628,3.98473,3348.3,3347.7,1.23226]
[1735759479629,3.6854,3348.3,3347.7,1.23226]
[1735759479819,3.6854,3348.3,3348.2,0.29934]
[1735759480021,3.98473,3348.3,3348.2,0.29934]
[1735759480728,3.6854,3348.3,3348.2,0.29934]
[1735759480917,3.98473,3348.3,3348.2,0.29934]
[1735759481123,3.98473,3348.3,3348.1,0.29934]
[1735759481621,3.6854,3348.3,3348.2,0.29934]
[1735759481826,0.4776,3348.3,3348.2,0.29934]
[1735759482430,0.77693,3348.3,3347.9,3.2078]
[1735759482633,0.77693,3348.3,3348.1,0.29934]
[1735759482927,0.77693,3348.3,3348.2,0.29934]
[1735759483330,0.4776,3348.3,3348.2,0.29934]
[1735759484534,0.2993,3348.6,3348.0,0.74839]
[1735759484723,0.2993,3348.6,3348.1,0.4767]
[1735759484919,0.2993,3348.6,3348.2,0.4578]
[1735759485124,0.2993,3348.6,3348.4,0.29931]
[1735759485329,4.2153,3348.7,3348.5,0.29931]
[1735759485530,0.29931,3348.5,3348.4,0.29931]
[1735759485832,4.2153,3348.7,3348.2,0.9479]
[1735759486037,4.51459,3348.7,3348.5,0.2993]
[1735759486241,3.7111,3348.7,3348.6,0.2993]
[1735759486526,3.2078,3348.7,3348.6,0.2993]
[1735759487328,3.50709,3348.7,3348.6,0.2993]
[1735759487733,3.2078,3348.7,3348.6,0.2993]
[1735759489037,3.50709,3348.7,3348.6,0.2993]
[1735759489629,3.2078,3348.7,3348.6,0.2993]
[1735759491538,3.50709,3348.7,3348.6,0.2993]
[1735759493240,3.2078,3348.7,3348.1,0.4767]
[1735759493440,0.29934,3348.2,3348.1,0.4767]
[1735759493938,0.29934,3348.2,3348.1,0.77604]
[1735759498743,0.29935,3348.1,3348.0,0.29934]
[1735759498942,0.5057,3348.4,3347.9,3.6814]
[1735759499136,0.29934,3348.2,3348.1,0.29934]
[1735759501942,0.5057,3348.4,3347.9,3.6814]
[1735759502143,0.29933,3348.3,3348.2,0.29933]
[1735759503445,3.2078,3348.7,3348.6,0.2993]
[1735759503946,3.7133,3348.7,3348.6,41.0993]
[1735759504540,3.2078,3349.1,3349.0,0.29926]
[1735759504741,3.2078,3349.5,3348.7,0.74822]
[1735759505044,0.29924,3349.4,3349.2,0.29924]
[1735759506436,3.7133,3349.5,3348.8,40.8]
[1735759506745,0.29925,3349.2,3349.1,0.29925]
[1735759506945,5.98392855,3349.5,3349.1,0.29925]
[1735759506946,0.29924,3349.3,3349.1,0.29925]
[1735759507143,0.5047,3349.2,3349.1,0.29925]
[1735759507343,0.80395,3349.2,3349.0,0.29926]
[1735759507543,0.80395,3349.2,3348.8,40.8]
[1735759507544,0.29925,3349.1,3348.9,0.29927]
[1735759508046,0.4827,3349.0,3348.9,0.29927]
[1735759508248,0.4827,3349.0,3348.8,40.8]
[1735759508449,0.4827,3349.0,3348.8,0.29928]
[1735759508948,0.2993,3348.7,3348.5,0.2993]
[1735759509143,3.5071,3348.7,3348.6,0.2993]
[1735759509342,0.4827,3349.0,3348.6,0.2993]
[1735759509548,0.29927,3348.9,3348.5,0.2993]
[1735759509945,0.2993,3348.6,3348.5,0.2993]
[1735759510649,0.2993,3348.7,3348.4,0.4985]
[1735759510850,0.2993,3348.7,3348.6,0.2993]
[1735759512263,0.2993,3348.7,3348.4,0.4985]
[1735759512457,0.4827,3349.0,3348.5,0.2993]
[1735759512762,0.2993,3348.7,3348.5,0.2993]
[1735759512965,0.29931,3348.6,3348.4,0.79781]
[1735759513658,0.29931,3348.6,3348.4,0.4985]
[1735759513959,0.2993,3348.7,3348.5,0.29931]
[1735759514559,0.29928,3348.8,3348.6,0.29929]
[1735759514763,0.29928,3348.9,3348.7,0.29928]
[1735759515264,3.2078,3349.1,3349.0,0.29926]
[1735759515465,0.9594,3349.4,3349.0,0.29926]
[1735759515858,0.29925,3349.1,3349.0,0.29926]
[1735759517066,0.29927,3349.0,3348.8,0.80598]
[1735759518264,0.29927,3349.0,3348.8,0.5067]
[1735759518467,0.9594,3349.4,3348.8,0.5067]
[1735759518468,0.29927,3348.9,3348.8,0.80598]
[1735759518662,0.29927,3349.0,3348.9,0.29927]
[1735759519264,0.29927,3349.0,3348.8,0.5067]
[1735759519565,0.29927,3349.0,3348.8,0.80598]
[1735759519964,0.9594,3349.4,3348.8,0.80598]
[1735759520162,0.29928,3348.8,3348.7,0.29929]
[1735759520366,3.2078,3349.1,3348.4,3.7063]
[1735759520561,0.481,3349.0,3348.7,0.29929]
[1735759520967,0.29928,3348.8,3348.7,0.29929]
[1735759521669,0.5057,3348.9,3348.8,0.29928]
[1735759522172,0.80497,3348.9,3348.8,0.29928]
[1735759523265,0.5057,3348.9,3348.4,3.7063]
[1735759523572,0.29928,3348.8,3348.7,0.29929]
[1735759533779,0.5057,3348.9,3348.4,3.7063]
[1735759533780,0.80498,3348.9,3348.8,0.29928]
[1735759538690,0.5057,3348.9,3348.8,0.29928]
[1735759540789,0.29929,3348.8,3348.7,0.29928]
[1735759541579,0.5057,3348.9,3348.4,3.7063]
[1735759541788,0.29931,3348.5,3348.4,3.50711]
[1735759542088,0.29934,3348.2,3348.1,0.29934]
[1735759542282,1.37325386,3348.2,3348.1,0.29934]
[1735759542684,1.07391386,3348.2,3348.1,0.29934]
[1735759542885,1.37325386,3348.2,3348.1,0.29934]
[1735759543083,2.35635386,3348.2,3348.1,0.29934]
[1735759543693,0.487,3348.2,3348.1,0.29934]
[1735759544799,3.2078,3348.6,3348.0,0.74838]
[1735759545087,3.2078,3348.6,3347.9,41.7624]
[1735759545286,0.29928,3348.8,3348.2,3.2078]
[1735759545493,0.29928,3348.8,3348.7,0.29929]
[1735759545885,0.9709,3348.9,3348.4,0.5019]
[1735759546189,0.9709,3348.9,3348.8,0.29928]
[1735759546190,0.78627,3348.9,3348.8,0.29928]
[1735759546398,0.29928,3348.8,3348.7,0.29928]
[1735759546891,0.78628,3348.9,3348.8,0.29928]
[1735759547088,0.487,3348.9,3348.8,0.29928]
[1735759548296,0.29927,3349.0,3348.5,0.506]
[1735759548497,0.29927,3349.0,3348.8,0.29928]
[1735759548692,0.29927,3349.0,3348.9,0.495]
[1735759550299,0.29927,3348.9,3348.8,0.29928]
[1735759551193,0.29929,3348.7,3348.5,0.506]
[1735759551393,3.2078,3348.7,3348.2,0.495]
[1735759551591,3.50709,3348.7,3348.6,0.46798836]
[1735759551797,3.98219,3348.7,3348.6,0.46798836]
[1735759551995,0.29931,3348.5,3348.4,0.29931]
[1735759552696,0.2993,3348.6,3348.5,0.2993]
[1735759552898,3.9822,3348.7,3348.5,0.2993]
[1735759553099,3.6829,3348.7,3348.2,0.495]
[1735759553399,3.6829,3348.7,3348.4,0.29931]
[1735759553595,0.29931,3348.6,3348.4,0.29931]
[1735759555404,0.29932,3348.4,3348.3,0.29932]
[1735759556302,0.29934,3348.1,3348.0,0.4594]
[1735759556702,3.2078,3348.1,3348.0,0.4594]
[1735759556998,5.4760575,3348.1,3346.7,7.80019118]
[1735759557203,2.2682575,3347.8,3347.5,0.5]
[1735759557406,2.2682575,3347.8,3347.5,0.79939]
[1735759558411,2.5676275,3347.8,3347.5,0.79939]
[1735759558603,2.2682575,3347.8,3347.5,0.5]
[1735759558797,0.4674,3348.0,3347.7,0.29938]
[1735759559205,0.4674,3348.0,3347.8,0.4886]
[1735759559402,0.4674,3348.0,3347.8,0.78797]
[1735759559705,0.4674,3348.0,3347.9,0.29936]
[1735759559905,0.4674,3348.0,3347.9,0.80546]
[1735759560301,5.4760575,3348.1,3348.0,0.29935]
[1735759560302,3.2078,3348.1,3348.0,0.29935]
[1735759560605,5.4760575,3348.1,3347.9,0.5061]
[1735759560814,5.4760575,3348.1,3347.9,0.80546]
[1735759561014,5.4760575,3348.1,3348.0,40.8]
[1735759561806,2.2682575,3348.1,3348.0,40.8]
[1735759562905,0.29936,3347.9,3347.8,0.4886]
[1735759563909,2.2682575,3348.1,3347.5,0.5]
[1735759564211,0.29938,3347.7,3347.5,0.5]
[1735759564408,0.29939,3347.6,3347.5,0.5]
[1735759566209,0.2994,3347.5,3347.4,3.2078]
[1735759566602,0.4695,3347.7,3347.2,6.44606998]
[1735759566804,0.4695,3347.7,3347.2,6.14664998]
[1735759566805,0.29941,3347.4,3347.2,6.14664998]
[1735759567000,0.4695,3347.7,3347.2,6.14664998]
[1735759567213,0.2994,3347.5,3347.2,0.29942]
[1735759567412,0.29939,3347.6,3346.9,1.4333]
[1735759567613,0.29939,3347.6,3347.3,0.29941]
[1735759567815,6.2332275,3347.8,3347.5,0.29939]
[1735759568107,6.2332275,3347.8,3347.6,0.76928]
[1735759568108,3.6656,3347.8,3347.6,0.76928]
[1735759568410,3.6656,3347.8,3347.7,0.9949]
[1735759568605,3.2078,3347.8,3347.7,0.9949]
[1735759568806,0.4654,3348.0,3347.7,0.9949]
[1735759569115,3.50714,3348.2,3347.9,0.29936]
[1735759569515,3.50714,3348.2,3347.8,0.29937]
[1735759569516,0.29934,3348.1,3347.8,0.29937]
[1735759569909,0.29934,3348.1,3347.9,40.8]
[1735759571113,3.2078,3348.2,3347.9,40.8]
[1735759571310,0.29936,3347.9,3347.7,0.9949]
[1735759571509,0.4719,3347.8,3347.7,0.9949]
[1735759571809,0.4719,3347.8,3347.7,42.09428]
[1735759572012,0.29943,3347.2,3346.9,0.29945]
[1735759572205,0.29944,3347.1,3346.9,0.4729]
[1735759573216,0.4719,3347.2,3346.9,0.77235]
[1735759573510,2.2682575,3347.0,3346.8,3.2078]
[1735759573707,0.29947,3346.7,3346.6,0.4729]
[1735759574611,2.2682575,3347.0,3346.6,0.4729]
[1735759574816,0.29946,3346.8,3346.6,0.77237]
[1735759575714,2.2682575,3347.0,3346.6,0.4729]
[1735759576018,0.29947,3346.7,3346.6,0.4729]
[1735759576714,0.9936,3347.1,3346.6,0.4729]
[1735759577023,0.29946,3346.8,3346.6,0.77237]
[1735759578219,0.29947,3346.7,3346.6,0.4729]
[1735759579312,2.2682575,3346.8,3346.3,3.2078]
[1735759579516,0.29949,3346.4,3346.3,3.2078]
[1735759580516,0.2995,3346.3,3346.2,41.2887]
[1735759580712,0.29953,3346.1,3345.9,0.29954]
[1735759581315,3.2078,3346.4,3345.7,1.4487]
[1735759581510,0.29955,3345.9,3345.7,1.74826]
[1735759581820,3.2078,3346.4,3345.7,1.4487]
[1735759582016,0.29952,3346.2,3346.0,0.29953]
[1735759582823,0.29952,3346.1,3346.0,0.29953]
[1735759583023,0.29952,3346.1,3345.7,1.4487]
[1735759583223,0.29952,3346.2,3346.0,0.29952]
[1735759583421,3.5073,3346.4,3346.2,0.29951]
[1735759583621,3.5073,3346.4,3346.3,0.4618]
[1735759592425,3.2078,3346.4,3346.3,0.7613]
[1735759597428,0.76408,3346.6,3346.5,0.29949]
[1735759599026,0.76408,3346.6,3346.3,0.9229]
[1735759599222,0.29949,3346.5,3346.4,0.29949]
[1735759599421,0.76408,3346.6,3346.5,0.29949]
[1735759601522,0.29949,3346.5,3346.3,0.9229]
[1735759601721,0.29951,3346.2,3346.1,0.29952]
[1735759602424,3.2078,3346.4,3345.7,0.9623]
[1735759602631,0.29953,3346.0,3345.9,0.29954]
[1735759602831,0.29954,3345.9,3345.8,0.76792818]
[1735759603128,0.77054,3346.0,3345.9,0.29954]
[1735759606526,0.471,3346.0,3345.7,0.9623]
[1735759606721,0.29955,3345.9,3345.8,0.76793247]
[1735759606922,0.77054,3346.0,3345.9,0.29954]
[1735759608135,3.95656,3346.4,3345.7,0.9623]
[1735759608136,3.2078,3346.4,3345.7,0.9623]
[1735759608431,0.29953,3346.1,3346.0,0.29952]
[1735759608734,0.29953,3346.1,3346.0,41.09952]
[1735759609128,0.29953,3346.1,3346.0,40.8]
[1735759609328,0.29955,3345.8,3345.6,0.75996]
[1735759609626,2.2682575,3346.2,3345.6,0.75996]
[1735759609627,0.4705,3345.7,3345.6,0.75996]
[1735759611329,0.77006,3345.7,3345.5,0.29957]
[1735759611530,0.77006,3345.7,3345.6,0.29957]
[1735759612539,0.4705,3345.7,3345.6,0.29957]
[1735759613434,0.29957,3345.6,3345.4,0.29958]
[1735759613836,0.77007,3345.7,3345.3,40.8]
[1735759614033,0.77007,3345.7,3345.5,0.29957]
[1735759614532,0.4705,3345.7,3345.3,40.8]
[1735759614734,0.4705,3345.7,3345.6,0.29957]
[1735759615531,3.2078,3345.9,3345.8,0.29955]
[1735759615731,0.29952,3346.1,3345.5,3.2078]
[1735759615932,0.4931,3346.2,3345.5,3.95675]
[1735759616136,0.29953,3346.0,3345.8,0.29954]
[1735759616337,0.29953,3346.0,3345.3,40.8]
[1735759616338,3.2078,3345.9,3345.6,0.29956]
[1735759616635,0.29956,3345.8,3345.6,0.29956]